Cogmind - Beta 11 @@@ ROGUE MODE // 2022.03.21 @ 01:33:40 Player: Wyvric Result: Destroyed by DAS Turret with DAS Cannon Performance ------------- Evolutions (0) 0 Regions Visited (3) 600 Robots Destroyed (14) 70 Value Destroyed (266) 266 Prototype IDs (0) 0 Alien Tech Used (0) 0 Bonus (-29) -29 TOTAL SCORE: 907 Bonus ------- Friendly Fire -29 Cogmind --------- Core Integrity 0/250 Matter 290/300 Energy 78/100 System Corruption 7% Temperature Cool (22) Movement Hovering (80) Location -10/Exiles Parts ------- > --- POWER (1) -------- (None) > --- PROPULSION (2) --- Combat Airjet > --- UTILITY (2) ------ (None) > --- WEAPON (2) ------- (None) > --- INVENTORY (5) ---- Ion Engine Light Treads Combat Airjet Huge Storage Unit Heavy Assault Rifle Peak State ------------ > --- POWER ------------ Ion Engine > --- PROPULSION ------- Aluminum Leg Aluminum Leg > --- UTILITY ---------- Large Storage Unit Improved Light Armor Plating > --- WEAPON ----------- Heavy Assault Rifle Heavy Assault Rifle > --- INVENTORY -------- Ion Engine Light Treads Light Treads Combat Airjet Huge Storage Unit Structural Scanner Signal Interpreter Propulsion Shielding Light Armor Plating Light Armor Plating Heavy Assault Rifle Heavy Assault Rifle Mini Grenade Launcher [Rating: 13] Favorites ----------- Power Ion Engine Engine Ion Engine Propulsion Aluminum Leg Leg Aluminum Leg Wheel Compact Wheel Hover Unit Combat Airjet Utility Large Storage Unit Device Structural Scanner Storage Large Storage Unit Protection Improved Light Armor Plating Weapon Heavy Assault Rifle Energy Gun Small Laser Ballistic Gun Heavy Assault Rifle Build | -11 -10 -10 -10 ------- Run | Scr Mat Min Exi Slots Evolved . | . . . . Power . | . . . . Propulsion . | . . . . Utility . | . . . . Weapon . | . . . . Parts Attached 21 | 6 11 2 2 Power 2 | 1 1 . . Engine 2 | 1 1 . . Core . | . . . . Reactor . | . . . . Propulsion 7 | 2 3 1 1 Treads . | . . . . Leg 4 | . 3 1 . Wheel 2 | 2 . . . Hover 1 | . . . 1 Flight . | . . . . Utility 8 | 1 5 1 1 Device 1 | . 1 . . Storage 4 | 1 2 . 1 Processor . | . . . . Hackware . | . . . . Protection 3 | . 2 1 . Artifact . | . . . . Weapon 4 | 2 2 . . Energy Gun 2 | 2 . . . Energy Cannon . | . . . . Ballistic Gun 2 | . 2 . . Ballistic Cannon . | . . . . Launcher . | . . . . Special Weapon . | . . . . Impact Weapon . | . . . . Slashing Weapon . | . . . . Piercing Weapon . | . . . . Special Melee Weapon . | . . . . Unidentified Prototypes . | . . . . Parts Lost 6 | . . . 6 Power 1 | . . . 1 Propulsion 2 | . . . 2 Utility 1 | . . . 1 Weapon 2 | . . . 2 Highest Loss Streak 6 | . . . 6 To Critical Strikes . | . . . . Average Slot Usage (%) 99 | . 99 100 97 Engine 14 | . 14 14 14 Leg 27 | . 27 28 28 Storage 14 | . 14 14 14 Protection 13 | . 12 14 13 Ballistic Gun 27 | . 28 28 26 Naked Turns . | . . . . Heaviest Build 54 | 13 34 34 54 Greatest Support 26 | 26 26 20 20 Greatest Overweight (x) 2 | . 1 1 2 Average Overweight (x) . | . . 1 1 Largest Inventory Capacity 20 | 8 15 15 20 Average Capacity 13 | 6 11 15 16 Most Carried 15 | 6 10 15 15 Average Carried 11 | 4 8 14 14 Final Capacity 15 | 8 15 15 5 Final Carried 15 | 6 10 15 5 Class Distribution -------------------- 100% | Mutant Dominant Class ---------------- Mutant | -10/Materials Mutant | -10/Mines Mutant | -10/Exiles Resources | -11 -10 -10 -10 ----------- Run | Scr Mat Min Exi Matter Collected 582 | 211 323 48 . Remotely . | . . . . Salvage Created 355 | . 355 . . Parts 35 | . 35 . . Haulers Intercepted . | . . . . Recyclers Shooed . | . . . . Parts Field Recycled . | . . . . Retrieved Matter . | . . . . Parts Self-Destructed . | . . . . Prevented . | . . . . Kills | -11 -10 -10 -10 ------- Run | Scr Mat Min Exi Combat Hostiles Destroyed 13 | . 13 . . Guns 13 | . 13 . . Classes Destroyed 3 | . 3 . . Watcher 1 | . 1 . . Swarmer 8 | . 8 . . Grunt 5 | . 5 . . Best Kill Streak 3 | . 3 . . Combat Bots Only 3 | . 3 . . Max Kills in Single Turn 1 | . 1 . . Gunslinging . | . . . . Exploded . | . . . . Melee . | . . . . Uniques/NPCs Destroyed . | . . . . Combat | -11 -10 -10 -10 -------- Run | Scr Mat Min Exi Damage Taken 1156 | . 519 . 637 Core 305 | . 94 . 211 Absorbed by Shields . | . . . . Redirected to Shielding 4 | . 4 . . Core Remaining (%) 100 | 100 . . . Volleys Fired 33 | . 32 . 1 Largest 2 | . 2 . 2 Hottest 46 | . 46 . 46 Shots Fired 66 | . 64 . 2 Gun 66 | . 64 . 2 Cannon . | . . . . Launcher . | . . . . Special . | . . . . Kinetic 66 | . 64 . 2 Thermal . | . . . . Explosive . | . . . . Electromagnetic . | . . . . Robot Hit Streak 8 | . 8 . 3 Robot Miss Streak 6 | . 6 . . Penetration Max . | . . . . Secondary Targets 1 | . 1 . . Max Gunslinging Chain 1 | . 1 . . Shots Hit Robots 34 | . 32 . 2 Core Hits 17 | . 17 . . Critical Kills . | . . . . Critical Parts Destroyed . | . . . . Critical Strikes . | . . . . Melee Attacks . | . . . . Impact . | . . . . Slashing . | . . . . Piercing . | . . . . Sneak Attacks . | . . . . Combat Hostiles . | . . . . Follow-up Attacks . | . . . . Damage Inflicted 521 | . 492 . 29 Guns 521 | . 492 . 29 Cannons . | . . . . Explosions . | . . . . Melee . | . . . . Ramming . | . . . . Kinetic 521 | . 492 . 29 Thermal . | . . . . Explosive . | . . . . Electromagnetic . | . . . . Impact . | . . . . Slashing . | . . . . Piercing . | . . . . Highest Corruption 7 | . . . 7 Average Corruption 6 | . . . 6 Corruption Purged . | . . . . Corruption Blocked . | . . . . Effects 1 | . . . 1 Data Loss (minor) 1 | . . . 1 Overload Shots . | . . . . Overflow Damage . | . . . . Projectiles . | . . . . Explosions . | . . . . Melee . | . . . . Knockbacks . | . . . . Impact . | . . . . Kinetic . | . . . . Secondary . | . . . . Self-Inflicted Damage . | . . . . Shots . | . . . . Rammed . | . . . . Targets Rammed . | . . . . Kicked . | . . . . Crushed . | . . . . Highest Temperature 20 | . 14 . 20 Average Temperature 6 | . 6 . 12 Received Heat Transfer 242 | . 102 . 140 Siege Activations . | . . . . Robots Corrupted . | . . . . Combat Hostiles . | . . . . Parts Fried . | . . . . Impact Corruptions . | . . . . Robots Melted . | . . . . Combat Hostiles . | . . . . Parts Melted . | . . . . Heat Transferred . | . . . . Parts Sabotaged . | . . . . Parts Stolen . | . . . . Parts Stripped . | . . . . Power Chain Reactions . | . . . . Missiles Intercepted . | . . . . Alert | -11 -10 -10 -10 ------- Run | Scr Mat Min Exi Peak Influence 318 | . 318 61 . Initial 46 | . . 46 . Average 85 | . 164 18 . Maximum Alert Level 1 | . 1 . . Low Security (%) 82 | 100 62 100 . Level 1 17 | . 37 . . Level 2 . | . . . . Level 3 . | . . . . Level 4 . | . . . . Level 5 . | . . . . High Security . | . . . . Max Security . | . . . . Squads Dispatched 2 | . 2 . . Investigation 1 | . 1 . . Extermination . | . . . . Reinforcement 1 | . 1 . . Assault . | . . . . Garrison . | . . . . Intercept . | . . . . Searches Triggered . | . . . . Construction Impeded . | . . . . Haulers Reinforced . | . . . . Active Scanning Responses . | . . . . Cargo Convoy Interrupts . | . . . . Stealth | -11 -10 -10 -10 --------- Run | Scr Mat Min Exi Distress Signals 1 | . 1 . . Communications Jammed . | . . . . Distress Signals . | . . . . Times Spotted 32 | . 22 1 9 Peak Tracking Total 13 | . 5 1 13 Tactical Retreats 3 | . . 2 1 Traps | -11 -10 -10 -10 ------- Run | Scr Mat Min Exi Traps Triggered . | . . . . Indirectly . | . . . . Trap Hack Attempts . | . . . . Triggered . | . . . . Disarmed . | . . . . Reprogrammed . | . . . . Reused . | . . . . Traps Extracted . | . . . . Installed . | . . . . Triggered . | . . . . Machines | -11 -10 -10 -10 ---------- Run | Scr Mat Min Exi Machines Disabled . | . . . . Max in Single Turn . | . . . . Machines Sabotaged . | . . . . Garrisons Compromised . | . . . . Overloaded Fab Kills . | . . . . Hacking | -11 -10 -10 -10 --------- Run | Scr Mat Min Exi Machines Accessed 6 | . 6 . . Terminals 5 | . 5 . . Fabricators . | . . . . Repair Stations . | . . . . Recycling Units 1 | . 1 . . Scanalyzers . | . . . . Garrison Access . | . . . . Total Hacks 10 | . 10 . . Successful 2 | . 2 . . Failed 8 | . 8 . . Catastrophic 1 | . 1 . . Database Lockouts . | . . . . Manual 4 | . 4 . . Terminals 9 | . 9 . . Fabricators . | . . . . Repair Stations . | . . . . Recycling Units 1 | . 1 . . Scanalyzers . | . . . . Garrison Access . | . . . . Terminal Hacks 1 | . 1 . . Zone Layout 1 | . 1 . . Fabricator Hacks . | . . . . Repair Station Hacks . | . . . . Recycling Unit Hacks . | . . . . Scanalyzer . | . . . . Garrison Access Hacks . | . . . . Unauthorized Hacks 1 | . 1 . . Terminals . | . . . . Fabricators . | . . . . Repair Stations . | . . . . Recycling Units 1 | . 1 . . Tunnel 1 | . 1 . . Scanalyzers . | . . . . Garrison Access . | . . . . Data Cores Recovered . | . . . . Used . | . . . . Hacking Detections 5 | . 5 . . Full Trace Events . | . . . . Feedback Events . | . . . . Feedback Blocked . | . . . . Robot Schematics Acquired . | . . . . Robots Built . | . . . . Authchips . | . . . . Time . | . . . . Total Robot Build Rating . | . . . . Part Schematics Acquired . | . . . . Parts Built . | . . . . Authchips . | . . . . Time . | . . . . Total Part Build Rating . | . . . . Parts Repaired . | . . . . Time . | . . . . Parts Recycled . | . . . . Recycled Matter . | . . . . Retrieved Matter . | . . . . Retrieved Components . | . . . . Parts Scanalyzed . | . . . . Part Schematics Acquired . | . . . . Parts Damaged . | . . . . Bothacking | -11 -10 -10 -10 ------------ Run | Scr Mat Min Exi Used RIF Installer . | . . . . Robots Hacked . | . . . . Non-combat . | . . . . Combat . | . . . . Robot Hacks Applied . | . . . . Relay Couplers Released . | . . . . Fabnet Peak Effective % . | . . . . Robots Rewired . | . . . . Allies Hacked . | . . . . Hacks Repelled . | . . . . Allies | -11 -10 -10 -10 -------- Run | Scr Mat Min Exi Total Allies . | . . . . Largest Group . | . . . . Highest-Rated Group . | . . . . Highest-Rated Ally . | . . . . Total Orders . | . . . . Ally Attacks . | . . . . Total Damage . | . . . . Kills . | . . . . Allies Corrupted . | . . . . Allies Melted . | . . . . Intel | -11 -10 -10 -10 ------- Run | Scr Mat Min Exi Robot Analysis Total . | . . . . Derelict Logs Recovered 2 | . . 2 . Drone Launches . | . . . . Drone Recoveries . | . . . . Exploration | -11 -10 -10 -10 ------------- Run | Scr Mat Min Exi Turns Passed 2415 | 59 987 1086 283 Spaces Moved 1224 | 55 477 559 133 Core 13 | 13 . . . Treads . | . . . . Legs 1160 | . 469 559 132 Wheels 50 | 42 8 . . Hover 1 | . . . 1 Flight . | . . . . Fastest Speed 50 | 50 90 190 80 Average Speed 181 | 81 176 190 204 Slowest Speed 260 | 100 190 190 260 Overloaded Moves . | . . . . Propulsion Burnouts . | . . . . Robots Hopped . | . . . . Cave-ins Triggered . | . . . . Exploration Rate (%) 56 | 4 87 99 34 Regions Visited 3 Branch Regions 2 Pre-discovered Areas 3 | . 1 2 . Known Exits Taken . | . . . . Unknown Exits Taken 3 | 1 1 1 . Scrap Searched 1 | . . 1 . Spaces Dug . | . . . . Terrain Destroyed . | . . . . Melee . | . . . . Projectile . | . . . . AOE . | . . . . Terrain Rammed . | . . . . Walls Destroyed . | . . . . Machines Disabled . | . . . . Actions | -11 -10 -10 -10 --------- Run | Scr Mat Min Exi Total 1353 | 66 559 585 143 Wait 25 | . 12 13 . Move 1221 | 54 476 558 133 Hop . | . . . . Pick Up 31 | 6 14 8 3 Fast Attach 9 | 6 3 . . Attach 3 | . 2 . 1 Detach . | . . . . Swap 9 | . 6 2 1 Drop 22 | . 14 4 4 Fire 33 | . 32 . 1 Melee . | . . . . Ram . | . . . . Kick . | . . . . Crush . | . . . . Escape Stasis . | . . . . Rewire . | . . . . Trap . | . . . . Miscellaneous . | . . . . Route ------- -11/Scrapyard -10/Materials (discovered 3 exits: [*Mat x2] / [*Min]) -10/Mines (discovered 3 exits: [*Mat x2] / [*Exi]) -10/Exiles (discovered 1 exit: [*Min]) History --------- Turn | Location | Event 18 | -11/Scrapyard | Discovered new exit (range 15) 60 | -11/Scrapyard | Entered Materials 292 | -10/Materials | Discovered new exit (range 11) 300 | -10/Materials | Build established: Mutant 590 | -10/Materials | Discovered new exit (range 8) 933 | -10/Materials | Discovered new exit (range 15) 1047 | -10/Materials | Entered Mines 1048 | -10/Mines | Assembled infested the area 1056 | -10/Mines | Learned location of Storage (-8) 1084 | -10/Mines | Met a Derelict bent on vengeance 1131 | -10/Mines | Discovered new exit (range 7) 1305 | -10/Mines | Discovered new exit (range 6) 1375 | -10/Mines | Learned location of Mines (-9) 1465 | -10/Mines | Discovered new exit (range 5) 1699 | -10/Mines | Learned Materials machine intel 2133 | -10/Mines | Entered Exiles 2160 | -10/Exiles | Discovered new exit (range 15) 2236 | -10/Exiles | Met 8R-AWN 2263 | -10/Exiles | Met EX-HEX 2397 | -10/Exiles | Attacked by the Exiles 2401 | -10/Exiles | Core integrity fell below 50% 2415 | -10/Exiles | Core integrity fell below 20% 2416 | -10/Exiles | Destroyed by DAS Turret with DAS Cannon Last Messages --------------- time, folks! 02399_ EX-DEC deploys DAS Turret. 02399_ Hvy. Assault Rifle destroyed. 02402_ Knocked back. 02406_ Imp. Light Armor Plating destroyed. 02413_ Ion Engine destroyed. 02413_ System corrupted by crushing effect (+4). 02413_ Aluminum Leg destroyed. 02414_ System corrupted: Component data lost. 02414_ Aluminum Leg destroyed. 02414_ System corrupted by crushing effect (+3). 02414_ Knocked back. 02415_ HV Slug penetrates as-64122. 02415_ HV Slug penetrates as-53113. 02415_ as-81334 suffers critical hit (Destroy). 02415_ HV Slug penetrates Machine. 02415_ HV Slug penetrates Wall. 02415_ Dropped Hcp. Storage Unit. 02416_ EX-BIN: "I just want to science!" 02416_ Knocked back. Map ----- +----------------------------------------------------+ | ?????????????????????????????????????????????????? | | ?????????????????????????????????????????????????? | | ?????????????????????????????????????????????????? | | ?????????????????????????????????????????????????? | | ?????????????????????????????????????????????????? | | ?????????????????????????????????????????????????? | | ?????????????????????????????????????????????????? | | ??????????????????????????????#????###?######????? | | ???????????????????????????? #####"""""""""##??? | | ?????????????????????????? " """ """"##?? | | ?????????????????????????? "" " #?? | | ????????????????????????? " """#?? | | ?????????????????????????? " "#?? | | ?????????????????????????? " "##? | | ???????? ??????????????? ""## | | ???????? ???????????????" """ | | ??????? ????????????????" " | | ??????? ????????????????#""" | | ?????? ????????????????#""" | | ?????? "???????????????#"""" | | ?????? "?????????????##"" | | ????? ##?#####??####"""" | | ????? ##aaa####""" | | ???? % % """" c | | ???? c aaa | | ????" @!aa | | ???? %!!!aa " | | ???? " %]!"" """ " | | ?????" ""## ##""" " " ""#" " | | ????? ""#### ######""" """##"""""""# | | ????? """"##??# #????###""""########### | | ?????? """#??## ####????#####?????????? | | ?????? ""##??#! "!#??????????????????? | | ?????? """#????#" ! !#??????????????????? | | ??????? ??????#" "#??????????????????? | | ???????"" ????????#!!"" "#??????????????????? | | ???????? ?????????########??????????????????? | | ????????###??????????????????????????????????????? | | ?????????????????????????????????????????????????? | | ?????????????????????????????????????????????????? | | ?????????????????????????????????????????????????? | | ?????????????????????????????????????????????????? | | ?????????????????????????????????????????????????? | | ?????????????????????????????????????????????????? | | ?????????????????????????????????????????????????? | | ?????????????????????????????????????????????????? | | ?????????????????????????????????????????????????? | | ?????????????????????????????????????????????????? | | ?????????????????????????????????????????????????? | | ?????????????????????????????????????????????????? | +----------------------------------------------------+ Best States ------------- Heat Dissipation 25 Energy Generation 10 Energy Capacity 250 Matter Stores 300 Matter Capacity 300 Sight Range 16 Terrain Scan Density 10 Armor Coverage 150 Propulsion Shielding 33 Evasion (%) 55 Item Schematics ----------------- None Robot Schematics ------------------ None Fabricated ------------ Nothing Alien Tech Used ----------------- None Achievements -------------- None Challenges ------------ None Game ------ Seed UtilityAssembledHumpback Manual? 0 Play Time 00:18:30 Cumulative 149.8 hours Start 2022.03.21 @ 01:05:31 End 2022.03.21 @ 01:33:40 Sessions 1 Manual Loads 0 Difficulty Rogue Special Mode None Game No. 40 Rogue 40 Adventurer 0 Explorer 0 Win Type - Total 12 Types 7/2/1/1/1/0/0/0/0 Lore% 43 Gallery% 69 Achievement% 60 Wizard Run 0 Options --------- ASCII 0 Keyboard 0 Movement Numpad Keybinds 0 Fullscreen 1 Font 18/TerminusBold Map View 76x50 Tactical HUD 1 Map Filters NONE Filters NONE Steam 1 RUN: 825e3b0f-99dd-4547-9f6a-f58b91702e4f